bitfinex-derivatives/quotes_SOLF0:USTF0_20240829
["timestamp","ask_amount","ask_price","bid_price","bid_amount"]
[1724958411991,3.55932664,139.93,139.81,41.45]
[1724958412190,50.13,139.96,139.84,41.45]
[1724958412600,50.13,139.96,139.89,0.04556991]
[1724958412601,0.04589402,139.91,139.89,0.04556991]
[1724958412796,0.04845977,139.91,139.89,0.04556991]
[1724958413300,3.573,139.9,139.89,0.04556991]
[1724958413495,8.68,139.9,139.81,41.45]
[1724958414498,0.04848784,139.87,139.84,0.05205406]
[1724958414798,3.5742,139.86,139.84,0.05205406]
[1724958415100,0.04848784,139.87,139.84,0.05205406]
[1724958417592,3.5741,139.86,139.84,0.05205406]
[1724958417790,0.04848784,139.87,139.84,0.05205406]
[1724958419901,3.5743,139.85,139.84,0.05205406]
[1724958420301,41.45,139.87,139.78,1.9761]
[1724958420908,45.6334,139.89,139.78,1.9761]
[1724958421108,45.6334,139.89,139.77,41.45]
[1724958421405,0.05248477,139.85,139.82,0.00569102]
[1724958421606,41.45,139.83,139.73,1.9969]
[1724958421910,41.45,139.83,139.73,3.58659661]
[1724958422207,41.45,139.83,139.66,8.68]
[1724958422208,41.45,139.83,139.67,1.9969]
[1724958422604,3.5766,139.76,139.75,0.04899008]
[1724958422794,41.45,139.77,139.67,1.9969]
[1724958422998,41.45,139.75,139.63,45.5254]
[1724958423707,41.45,139.73,139.63,4.0754]
[1724958424004,0.05061305,139.7,139.68,0.0484239]
[1724958424200,28.6,139.77,139.67,41.45]
[1724958424408,28.6,139.77,139.68,0.04993438]
[1724958424601,0.05365223,139.73,139.71,0.05069086]
[1724958424904,0.05365223,139.73,139.72,41.45]
[1724958425409,3.63105223,139.73,139.71,0.05069086]
[1724958425904,0.05365223,139.73,139.71,0.05069086]
[1724958426611,3.5776,139.72,139.71,0.05069086]
[1724958426905,0.05365223,139.73,139.71,0.05069086]
[1724958431607,41.45,139.94,139.83,41.45]
[1724958431802,0.04882687,139.9,139.87,0.04951682]
[1724958432000,0.04582528,139.9,139.87,0.0483271]
[1724958433604,3.5733,139.89,139.87,0.0483271]
[1724958433912,0.04582528,139.9,139.87,0.0483271]
[1724958434212,8.86,139.96,139.89,41.45]
[1724958434510,41.45,140.05,139.93,41.45]
[1724958434700,3.5702,140.02,139.96,3.5714]
[1724958434902,50.31,140.05,139.96,3.5714]
[1724958435208,0.04689988,140.02,139.99,0.04537611]
[1724958435803,3.61699988,140.02,139.99,0.04537611]
[1724958436314,0.04689988,140.02,139.99,0.04537611]
[1724958438204,0.04689988,140.02,140.01,3.5702]
[1724958438614,0.04689988,140.02,140.0,41.45]
[1724958439315,0.04689988,140.02,139.99,0.04537611]
[1724958440517,3.5705,140.0,139.99,0.04537611]
[1724958442824,3.5717,139.96,139.93,41.45]
[1724958443028,8.86,140.01,139.93,41.45]
[1724958443427,8.86,140.01,139.91,41.45]
[1724958443921,0.04848437,139.97,139.95,0.05312518]
[1724958444325,3.5715,139.96,139.95,0.05312518]
[1724958444517,8.86,140.01,139.88,2.1217]
[1724958444518,41.45,139.99,139.88,2.1217]
[1724958445613,0.05205156,139.95,139.88,2.1217]
[1724958445814,8.86,139.94,139.9,0.05466824]
[1724958446027,3.5728,139.91,139.9,0.05466824]
[1724958448216,3.62433437,139.92,139.9,0.05466824]
[1724958448431,0.05173437,139.92,139.9,0.05466824]
[1724958450221,0.05173437,139.92,139.91,41.45]
[1724958452930,0.05173437,139.92,139.9,0.05466824]
[1724958454329,3.5728,139.91,139.9,0.05466824]
[1724958454830,3.62433437,139.92,139.9,0.05466824]
[1724958456938,3.5728,139.91,139.9,0.05466824]
[1724958457728,8.8,140.01,139.9,0.05466824]
[1724958457929,8.8,140.01,139.93,34.32]
[1724958458138,3.5719,139.95,139.93,34.32]
[1724958458436,8.8,140.01,139.93,34.32]
[1724958458832,0.05127187,139.98,139.96,0.05095745]
[1724958459435,3.5713,139.97,139.96,0.05095745]
[1724958463327,0.05127187,139.98,139.96,0.05095745]
[1724958464530,3.5713,139.97,139.96,0.05095745]
[1724958465331,0.05127187,139.98,139.96,0.05095745]
[1724958466036,3.5713,139.97,139.96,0.05095745]
[1724958469038,34.37127187,139.98,139.89,34.32]
[1724958469343,8.8,140.02,139.89,34.32]
[1724958469344,34.32,140.0,139.89,34.32]
[1724958469636,34.32,139.98,139.89,34.32]
[1724958469938,0.05391081,139.95,139.92,0.05435394]
[1724958470145,3.5723,139.93,139.92,0.05435394]
[1724958471932,3.5733,139.89,139.87,2.0821]
[1724958472152,34.32,139.91,139.83,2.0928]
[1724958472331,8.8,139.9,139.83,2.0928]
[1724958472641,8.8,139.9,139.8,36.3623]
[1724958473038,0.05257486,139.86,139.84,0.04713933]
[1724958473939,3.5743,139.85,139.84,0.04713933]
[1724958474345,3.5743,139.85,139.78,37.87728325]
[1724958474534,34.32,139.87,139.76,34.32]
[1724958474735,8.8,139.86,139.76,34.32]
[1724958475037,8.8,139.85,139.76,34.32]
[1724958475236,43.12,139.84,139.75,1.989]
[1724958475436,43.12,139.84,139.78,0.05216787]
[1724958475437,3.5758,139.79,139.78,0.05216787]
[1724958476433,0.05124922,139.81,139.78,0.05216787]
[1724958476638,3.5757,139.8,139.78,0.05216787]
[1724958478038,3.62664922,139.81,139.78,0.05216787]
[1724958478435,3.62664922,139.81,139.78,3.62826787]
[1724958478637,0.05124922,139.81,139.78,3.62826787]
[1724958478835,0.05124922,139.81,139.78,0.05216787]
[1724958479138,3.5758,139.8,139.78,0.05216787]
[1724958480140,3.5758,139.79,139.78,0.05216787]
[1724958481445,0.05124922,139.81,139.78,0.05216787]
[1724958481643,0.05124922,139.81,139.79,3.5756]
[1724958481837,0.05124922,139.81,139.78,34.37216787]
[1724958482945,0.05124922,139.81,139.79,3.5757]
[1724958485854,0.05124922,139.81,139.8,3.5756]
[1724958486438,371.3896,139.89,139.8,37.85123413]
[1724958486439,335.0,139.89,139.8,37.85123413]
[1724958486744,2.0536,139.91,139.82,34.32]
[1724958486945,8.44,139.9,139.82,34.32]
[1724958487153,37.97815406,139.93,139.84,34.32]
[1724958487341,8.44,139.92,139.84,34.32]
[1724958487540,0.04757711,139.9,139.87,3.61979285]
[1724958487741,0.04757711,139.9,139.87,0.04619285]
[1724958488350,3.62077711,139.9,139.87,0.04619285]
[1724958489048,0.04757711,139.9,139.87,0.04619285]
[1724958489451,3.572,139.94,139.9,3.573]
[1724958489746,97.12606284,139.98,139.89,34.32]
[1724958489948,86.72836284,139.98,139.89,34.32]
[1724958490146,95.16836284,139.98,139.91,37.8926]
[1724958490340,86.72836284,139.98,139.91,37.8926]
[1724958490645,0.04649014,139.96,139.93,0.04946047]
[1724958491049,34.32,139.95,139.93,0.04946047]
[1724958491249,34.32,139.94,139.85,11.93508173]
[1724958491545,34.32,139.92,139.81,34.32]
[1724958491746,34.32,139.92,139.81,3.52595275]
[1724958492255,34.32,139.93,139.8,4.0907]
[1724958492256,3.5745,139.85,139.8,4.0907]
[1724958492446,0.04724811,139.84,139.81,0.04793944]
[1724958492643,0.04724811,139.84,139.81,3.62313944]
[1724958493045,0.04724811,139.84,139.81,0.04793944]
[1724958493243,3.62204811,139.84,139.81,0.04793944]
[1724958493439,0.04724811,139.84,139.81,34.36793944]
[1724958493643,8.44,139.89,139.83,34.32]
[1724958493838,2.0432,139.95,139.85,34.32]
[1724958494048,8.44,139.95,139.85,34.32]
[1724958494246,8.44,139.95,139.88,3.5735]
[1724958494449,8.44,139.95,139.85,34.32]
[1724958494450,8.44,139.95,139.87,3.64369648]
[1724958494665,0.04903963,139.92,139.9,0.04795477]
[1724958499752,0.04903963,139.92,139.9,2.05945477]
[1724958500461,0.04903963,139.92,139.9,0.04795477]
[1724958500854,3.5728,139.91,139.9,0.04795477]
[1724958501755,0.04903963,139.92,139.9,0.04795477]
[1724958503354,8.08,139.98,139.91,34.32]
[1724958503557,8.08,139.99,139.91,34.32]
[1724958503750,2.0861,140.0,139.91,34.32]
[1724958503958,10.1661,140.0,139.91,34.32]
[1724958504161,8.08,139.99,139.91,34.32]
[1724958504459,3.572,139.95,139.94,0.04874465]
[1724958506859,0.05495385,139.96,139.88,34.32]
[1724958507159,0.05495385,139.96,139.72,101.80216421]
[1724958507160,8.08,139.97,139.9,34.32]
[1724958507463,3.5722,139.94,139.9,34.32]
[1724958507757,0.05492164,139.93,139.91,0.05307252]
[1724958508150,0.05492164,139.93,139.91,2.12777252]
[1724958508551,0.05492164,139.93,139.91,4.17857252]
[1724958509767,3.62722164,139.93,139.91,4.17857252]
[1724958509966,0.05492164,139.93,139.91,4.17857252]
[1724958510861,0.04715997,139.95,139.92,34.32]
[1724958511064,224.0,140.12,139.97,34.32]
[1724958511065,28.58,140.04,139.97,34.32]
[1724958511762,28.58,140.04,139.91,12.2055]
[1724958511763,34.32,140.03,139.92,34.32]
[1724958511964,3.5715,139.96,139.93,3.5723]
[1724958512160,0.05206537,139.96,139.93,0.04622595]
[1724958512365,3.62376537,139.96,139.93,0.04622595]
[1724958512771,0.05206537,139.96,139.93,0.04622595]
[1724958512962,3.572,139.94,139.93,0.04622595]
[1724958514266,0.05206537,139.96,139.93,0.04622595]
[1724958514760,3.5718,139.95,139.93,0.04622595]
[1724958515164,0.05206537,139.96,139.94,34.32]
[1724958515667,0.05206537,139.96,139.93,0.04622595]
[1724958516572,3.572,139.95,139.93,0.04622595]
[1724958516872,0.05206537,139.96,139.93,0.04622595]
[1724958517072,3.572,139.94,139.93,0.04622595]
[1724958517570,3.572,139.95,139.93,0.04622595]
[1724958518273,0.05206537,139.96,139.93,0.04622595]
[1724958518770,0.05206537,139.96,139.93,3.61842595]
[1724958518971,0.05206537,139.96,139.93,0.04622595]
[1724958519274,0.05206537,139.96,139.95,34.32]
[1724958519474,8.08,140.03,139.95,37.8762747]
[1724958519975,28.58,140.04,139.95,37.8762747]
[1724958520169,34.32,140.06,139.97,34.32]
[1724958520369,3.56234648,140.08,139.97,34.32]
[1724958520573,0.04542344,140.04,140.01,0.04735428]
[1724958520776,3.57,140.02,140.01,0.04735428]
[1724958521378,3.5698,140.03,140.01,0.04735428]
[1724958521579,0.04542344,140.04,140.01,0.04735428]
[1724958521783,0.04542344,140.04,140.01,3.61745428]
[1724958521977,0.04542344,140.04,140.01,0.04735428]
[1724958522376,3.61492344,140.04,140.01,0.04735428]
[1724958523678,3.61492344,140.04,140.01,3.61745428]
[1724958523985,0.04542344,140.04,140.01,0.04735428]
[1724958524583,3.57,140.02,140.01,0.04735428]
[1724958525875,0.19215182,140.02,140.01,0.04735428]
[1724958526583,0.19215182,140.02,140.01,3.61755428]
[1724958528190,0.04542344,140.04,140.01,3.61755428]
[1724958528384,0.04542344,140.04,140.01,37.93755428]
[1724958528589,0.04542344,140.04,140.01,34.36735428]
[1724958529083,0.04542344,140.04,140.01,0.04735428]
[1724958529794,3.57,140.02,140.01,0.04735428]
[1724958530392,0.04542344,140.04,140.01,0.04735428]
[1724958530783,0.04542344,140.04,140.01,3.61755428]
[1724958530984,0.04542344,140.04,140.01,0.04735428]
[1724958531384,0.04542344,140.04,140.02,37.8899]
[1724958531787,3.5691,140.06,140.02,34.32]
[1724958532084,3.5691,140.06,140.02,39.8813]
[1724958532688,3.61902406,140.05,140.02,39.8813]
[1724958532996,0.05474795,140.05,140.02,39.92778884]
[1724958533294,0.05474795,140.05,140.03,3.5696]
[1724958533597,0.05474795,140.05,140.03,3.53410203]
[1724958533789,0.05474795,140.05,140.04,3.5695]
[1724958534496,0.05474795,140.05,140.03,3.5695]
[1724958535192,0.05474795,140.05,140.03,3.60156444]
[1724958535989,0.05474795,140.05,140.02,36.35788884]
[1724958536291,0.05474795,140.05,140.04,3.5695]
[1724958536500,0.05474795,140.05,140.03,3.50805116]
[1724958536890,7.76,140.11,140.04,34.32]
[1724958537089,3.5685,140.08,140.05,5.499]
[1724958537400,3.5685,140.08,140.05,1.9299]
[1724958538093,3.61209647,140.08,140.05,5.55411629]
[1724958538294,3.5687,140.07,140.05,5.55411629]
[1724958538896,3.569,140.06,140.05,0.05501629]
[1724958540191,0.04359647,140.08,140.05,0.05501629]
[1724958540896,3.5687,140.07,140.05,0.05501629]
[1724958541690,3.569,140.06,140.05,0.05501629]
[1724958542587,34.32,140.08,139.98,34.32]
[1724958543097,0.3881,140.08,139.98,34.32]
[1724958543396,4.0166,140.09,140.0,34.32]
[1724958543602,3.5694,140.05,140.03,0.05484191]
[1724958543793,0.04803426,140.06,140.03,0.05484191]
[1724958543794,0.04803426,140.06,140.03,3.71313446]
[1724958543992,0.04803426,140.06,140.03,0.05484191]
[1724958544300,0.04803426,140.06,140.04,37.82726212]
[1724958545201,0.04803426,140.06,140.04,39.92096212]
[1724958545788,0.04803426,140.06,140.05,3.5692]
[1724958545993,0.04803426,140.06,140.04,39.92096212]
[1724958546698,0.04803426,140.06,140.04,43.49026212]
[1724958547490,0.04803426,140.06,140.04,39.983]
[1724958547902,0.04803426,140.06,140.04,2.0937]
[1724958548792,0.04803426,140.06,140.04,5.6631]
[1724958549699,0.04803426,140.06,140.04,2.0937]
[1724958550404,0.04803426,140.06,140.04,5.663]
[1724958550604,0.04803426,140.06,140.04,2.0937]
[1724958551096,0.04803426,140.06,140.05,3.5692]
[1724958551606,0.04803426,140.06,140.05,37.8892]
[1724958553302,0.04803426,140.06,140.05,3.5692]
[1724958553502,0.04803426,140.06,140.05,37.8892]
[1724958553902,0.04803426,140.06,140.05,34.32]
[1724958554098,0.04803426,140.06,140.04,2.0937]
[1724958554606,0.04803426,140.06,140.04,5.6631]
[1724958555099,0.04803426,140.06,140.04,2.0937]
[1724958557202,0.04803426,140.06,140.05,34.32]
[1724958558603,0.04803426,140.06,140.05,37.8892]
[1724958560403,3.568,140.1,140.06,3.5688]
[1724958560704,3.568,140.1,140.07,34.32]
[1724958561113,3.5682,140.09,140.07,34.32]
[1724958561305,0.0505785,140.09,140.07,34.36665918]
[1724958562209,0.0505785,140.09,140.08,27.42]
[1724958562610,7.1298,140.23,140.08,27.42]
[1724958562806,4.0558,140.21,140.13,27.42]
[1724958563206,3.5663,140.17,140.13,27.42]
[1724958563721,3.5667,140.15,140.14,0.04809171]
[1724958563906,27.42,140.17,140.13,0.04733094]
[1724958564105,7.74,140.18,140.13,0.04733094]
[1724958564309,3.5669,140.14,140.13,0.04733094]
[1724958564709,3.5669,140.14,140.04,4.0959]
[1724958564710,34.27,140.15,140.05,34.27]
[1724958565011,34.27,140.13,140.04,2.0937]
[1724958565212,37.77618606,140.13,140.05,3.569]
[1724958565416,7.74,140.12,140.05,34.27]
[1724958565812,0.04509823,140.1,140.08,3.5684]
[1724958566013,0.04509823,140.1,140.07,34.3232595]
[1724958566519,0.04509823,140.1,140.09,37.8382]
[1724958567618,0.04509823,140.1,140.09,3.5682]
[1724958569315,0.04509823,140.1,140.09,37.8382]
[1724958569618,3.5666,140.16,140.12,3.5674]
[1724958569819,90.80603401,140.18,140.11,3.51557361]
[1724958570113,90.80603401,140.18,140.09,34.27]
[1724958570114,3.5665,140.16,140.09,34.27]
[1724958570316,83.06603401,140.18,140.09,34.27]
[1724958570519,90.80603401,140.18,140.09,34.27]
[1724958570721,3.5669,140.15,140.12,0.04778444]
[1724958571515,3.5669,140.15,140.12,3.61518444]
[1724958571919,3.5665,140.16,140.12,3.61992558]
[1724958572123,83.06603401,140.18,140.12,0.04778444]
[1724958572320,3.5671,140.14,140.12,0.04778444]
[1724958572925,7.74,140.17,140.12,3.61508444]
[1724958573322,3.5671,140.14,140.12,0.04778444]
[1724958573720,45.54646967,140.14,140.04,4.0488]
[1724958573920,34.27,140.12,140.02,34.27]
[1724958574121,34.27,140.12,140.0,34.27]
[1724958574316,37.79184436,140.12,140.0,34.27]
[1724958574521,3.5687,140.07,140.0,34.27]
[1724958574818,0.04676395,140.05,140.02,0.04611354]
[1724958575018,0.05001715,140.05,140.02,0.05438837]
[1724958576824,0.05001715,140.05,140.03,3.56632928]
[1724958577024,0.05001715,140.05,140.03,7.13592928]
[1724958577523,0.05001715,140.05,140.04,3.5695]
[1724958578126,9.7677,140.13,140.04,34.27]
[1724958578425,2.0277,140.13,140.04,34.27]
[1724958578621,3.5679,140.1,140.06,3.5688]
[1724958578829,2.0277,140.13,140.04,34.27]
[1724958579029,3.5684,140.08,140.07,0.05402446]
[1724958580429,3.5694,140.05,140.01,3.5702]
[1724958580627,42.01,140.09,139.98,38.1735]
[1724958580833,42.01,140.09,140.02,3.5698]
[1724958581333,3.569,140.06,140.02,3.5698]
[1724958581637,36.2977,140.13,140.04,0.05214602]
[1724958581638,0.04562633,140.07,140.04,0.05214602]
[1724958581930,0.04611333,140.07,140.06,3.5688]
[1724958582126,0.04611333,140.07,140.06,3.55587561]
[1724958582319,0.04611333,140.07,140.04,0.04731309]
[1724958582630,0.04611333,140.07,140.06,34.27]
[1724958582837,0.04611333,140.07,140.06,37.79767704]
[1724958583033,0.04611333,140.07,140.06,37.839]
[1724958583333,0.04611333,140.07,140.06,3.56872559]
[1724958583625,0.04611333,140.07,140.05,5.6791]
[1724958584031,0.04611333,140.07,140.05,5.69702973]
[1724958584228,0.04611333,140.07,140.06,3.569]
[1724958585032,0.04611333,140.07,140.05,9.26612973]
[1724958585335,0.04611333,140.07,140.05,5.6792]
[1724958586630,0.04611333,140.07,140.06,3.569]
[1724958586829,36.28,140.14,140.06,34.27]
[1724958587025,7.74,140.14,140.06,36.2542]
[1724958587230,42.01,140.16,140.06,36.2542]
[1724958587432,3.5673,140.13,140.08,34.27]
[1724958587832,9.699,140.15,140.09,0.04523522]
[1724958588027,34.27,140.12,140.09,0.04523522]
[1724958588228,34.27,140.1,140.03,3.5695]
[1724958588424,34.27,140.1,140.03,3.62999257]
[1724958588633,34.27,140.1,140.01,36.235]
[1724958588835,3.5685,140.08,140.04,3.5692]
[1724958589032,34.27,140.1,140.01,1.965]
[1724958589240,0.05314635,140.07,140.04,0.05068292]
[1724958591137,3.5692,140.05,140.04,0.05068292]
[1724958591633,34.27,140.06,139.97,38.3243]
[1724958591838,11.28043801,140.08,139.88,7.1466]
[1724958591839,34.27,140.04,139.95,34.27]
[1724958592229,34.27,140.04,139.95,37.88957159]
[1724958592432,34.27,140.04,139.95,3.61957159]
[1724958592638,0.0513012,140.01,139.98,0.05363775]
[1724958593638,0.0513012,140.01,139.98,3.62453775]
[1724958593839,0.0513012,140.01,139.98,0.05363775]
[1724958594039,0.0513012,140.01,139.98,34.32363775]
[1724958594240,0.0513012,140.01,140.0,3.5705]
[1724958595141,7.74,140.09,140.0,34.27]
[1724958595337,3.58285471,140.11,140.0,36.1923]
[1724958595537,3.5686,140.08,140.04,3.5694]
[1724958596146,0.04891035,140.07,140.05,3.62328427]
[1724958596351,0.04891035,140.07,140.05,0.05408427]
[1724958597245,0.04891035,140.07,140.05,34.32408427]
[1724958597440,0.04891035,140.07,140.06,3.569]
[1724958598254,38.3336,140.16,140.08,3.5684]
[1724958598948,3.5676,140.12,140.08,3.5684]
[1724958599350,3.5677,140.11,140.09,0.05256429]
[1724958599551,34.27,140.14,140.09,0.05256429]
[1724958600249,34.27,140.12,140.09,0.05256429]
[1724958601553,3.5679,140.1,140.09,0.05256429]
[1724958603347,3.5676,140.12,140.09,0.05256429]
[1724958603553,7.74,140.18,140.09,0.05256429]
[1724958603750,34.27,140.19,140.12,0.04790314]
[1724958603956,34.27,140.19,140.14,0.04908767]
[1724958604657,34.25,140.19,140.14,0.04908767]
[1724958605754,38.3681,140.21,140.14,0.04908767]
[1724958606151,3.5662,140.17,140.14,0.04908767]
[1724958607054,3.5659,140.18,140.14,0.04908767]
[1724958607457,34.27,140.2,140.14,0.04908767]
[1724958608058,39.27,140.2,140.14,0.04908767]
[1724958608261,5.0,140.2,140.14,0.04908767]
[1724958608863,3.5661,140.18,140.14,0.04908767]
[1724958609259,8.5656,140.2,140.14,0.04908767]
[1724958609762,5.0,140.2,140.14,0.04908767]
[1724958609958,3.5658,140.19,140.15,3.5665]
[1724958610157,5.0,140.2,140.14,0.04908767]
[1724958610562,3.5662,140.17,140.14,0.04908767]
[1724958610870,34.27,140.19,140.14,0.04908767]
[1724958611161,5.0,140.2,140.14,0.04908767]
[1724958611162,3.5667,140.15,140.14,0.04908767]
[1724958615157,3.5665,140.16,140.14,0.04908767]
[1724958615357,34.623,140.19,140.14,0.04908767]
[1724958616467,34.27,140.19,140.14,0.04908767]
[1724958616660,5.0,140.2,140.14,0.04908767]
[1724958616964,3.5662,140.17,140.14,0.04908767]
[1724958617358,5.0,140.2,140.14,0.04908767]
[1724958617860,5.0,140.2,140.14,3.61588767]
[1724958618359,3.5661,140.18,140.14,3.61588767]
[1724958618862,5.0,140.2,140.14,0.04908767]
[1724958619364,34.27,140.19,140.14,0.04908767]
[1724958619563,5.0,140.2,140.14,0.04908767]
[1724958619564,34.27,140.17,140.14,0.04908767]
[1724958620055,37.8364,140.17,140.14,0.04908767]
[1724958620861,34.27,140.15,140.03,3.63748664]
[1724958621063,34.27,140.12,140.03,3.63748664]
[1724958621263,3.568,140.1,140.03,3.63748664]
[1724958621461,34.27,140.12,140.03,3.63748664]
[1724958621765,0.05270539,140.09,140.07,3.5687]
[1724958623964,0.05270539,140.09,140.06,0.04528279]
[1724958624669,0.05270539,140.09,140.06,3.61418279]
[1724958624670,3.62110539,140.09,140.06,3.61418279]
[1724958624866,3.62110539,140.09,140.06,0.04528279]
[1724958625471,0.05270539,140.09,140.06,0.04528279]
[1724958626760,0.05270539,140.09,140.08,3.5684]
[1724958627974,0.05270539,140.09,140.06,0.04528279]
[1724958628474,0.05270539,140.09,140.08,3.5684]
[1724958628972,0.05270539,140.09,140.08,3.390126]
[1724958629965,0.05270539,140.09,140.06,0.04528279]
[1724958631874,0.05270539,140.09,140.06,3.61418279]
[1724958633281,0.05270539,140.09,140.07,3.5687]
[1724958633673,0.05270539,140.09,140.08,3.5684]
[1724958635974,3.5669,140.15,140.04,7.72]
[1724958636181,3.5669,140.15,140.08,34.27]
[1724958636476,3.567,140.14,140.11,3.5675]
[1724958636982,34.27,140.16,140.11,0.04821887]
[1724958637780,3.5671,140.14,140.11,3.61591887]
[1724958638578,3.5671,140.14,140.11,7.17761318]
[1724958638779,3.5668,140.15,140.12,3.5674]
[1724958639877,3.5668,140.15,140.11,3.61581887]
[1724958640079,3.5668,140.15,140.11,7.13363368]
[1724958640276,3.5668,140.15,140.11,3.56603368]
[1724958640473,28.54,140.19,140.11,37.83603368]
[1724958640691,41.99,140.2,140.11,37.83603368]
[1724958640872,41.99,140.2,140.14,0.0516328]
[1724958641478,34.27,140.18,140.14,0.0516328]
[1724958642084,3.5667,140.15,140.14,0.0516328]
[1724958644179,7.16166799,140.15,140.07,34.27]
[1724958644382,41.99,140.2,139.84,25.0255]
[1724958644383,3.5679,140.1,140.04,36.3747]
[1724958644581,36.2351,140.14,140.04,36.3747]
[1724958644775,3.5678,140.11,140.07,3.5685]
[1724958645283,3.5678,140.11,140.08,3.5683]
[1724958645478,3.61520851,140.11,140.08,3.62036319]
[1724958645782,0.04740851,140.11,140.08,0.05206319]
[1724958645987,0.04740851,140.11,140.09,3.5682]
[1724958646285,0.04740851,140.11,140.08,0.05206319]
[1724958646586,0.04740851,140.11,140.1,3.5679]
[1724958646786,0.04740851,140.11,140.1,7.17093397]
[1724958647081,0.04740851,140.11,140.1,3.5679]
[1724958647583,0.04740851,140.11,140.1,7.20447712]
[1724958647777,2.0768,140.2,140.09,34.27]
[1724958648176,2.0768,140.2,140.07,3.5686]
[1724958648177,34.27,140.15,140.07,3.5686]
[1724958648379,3.5681,140.1,140.07,3.5686]
[1724958648575,34.27,140.13,140.03,36.3806]
[1724958648787,34.27,140.13,140.07,0.04791377]
[1724958648985,3.5679,140.11,140.07,0.04791377]
[1724958649581,34.27,140.08,140.0,7.72]
[1724958649884,34.27,140.08,139.99,2.1106]
[1724958650384,335.4075,140.12,140.03,34.27]
[1724958650775,335.4075,140.12,140.06,3.5688]
[1724958650978,0.04809227,140.09,140.06,37.87114765]
[1724958651288,0.04809227,140.09,140.07,3.5687]
[1724958652385,0.04809227,140.09,140.08,3.5684]
[1724958654385,0.04809227,140.09,140.07,3.5686]
[1724958654686,5.0,140.2,140.08,44.0492]
[1724958654986,3.5661,140.18,140.1,34.27]
[1724958655186,39.27,140.2,140.1,34.27]
[1724958655486,3.5663,140.17,140.14,0.05284077]
[1724958656082,39.27,140.2,140.14,0.05284077]
[1724958656284,7.7,140.19,140.14,0.05284077]
[1724958656684,34.27,140.18,140.08,2.0792]
[1724958657291,3.5671,140.14,140.1,3.5679]
[1724958657591,34.27,140.18,140.09,34.27]
[1724958657780,0.05176795,140.15,140.12,0.05100887]
[1724958658987,0.05176795,140.15,140.13,3.567]
[1724958659287,0.05176795,140.15,140.13,34.27]
[1724958659790,0.05176795,140.15,140.14,3.5669]
[1724958660188,0.05176795,140.15,140.14,7.09934116]
[1724958660698,0.05176795,140.15,140.14,3.5669]
[1724958660992,0.05176795,140.15,140.12,0.05100887]
[1724958662485,3.5672,140.13,140.12,0.05100887]
[1724958663087,0.05176795,140.15,140.12,0.05100887]
[1724958663696,0.05176795,140.15,140.12,3.61840887]
[1724958664192,3.61846795,140.15,140.12,3.61840887]
[1724958664792,0.05176795,140.15,140.12,0.05100887]
[1724958664990,0.05176795,140.15,140.13,34.27]
[1724958665393,0.05176795,140.15,140.14,3.5669]
[1724958665596,0.05176795,140.15,140.13,36.2328]
[1724958665786,0.05176795,140.15,140.13,39.7999]
[1724958665987,0.05176795,140.15,140.13,5.5299]
[1724958666191,0.05176795,140.15,140.12,0.05100887]
[1724958666786,0.05176795,140.15,140.12,3.61820887]
[1724958667293,0.05176795,140.15,140.12,0.05100887]
[1724958667894,3.61846795,140.15,140.12,0.05100887]
[1724958668296,0.05176795,140.15,140.12,0.05100887]
[1724958668497,3.5669,140.14,140.12,0.05100887]
[1724958669198,0.05176795,140.15,140.12,3.61840887]
[1724958669199,3.61846795,140.15,140.12,3.61840887]
[1724958669401,0.05176795,140.15,140.12,0.05100887]
[1724958669595,0.05176795,140.15,140.14,3.5669]
[1724958669896,0.05176795,140.15,140.14,7.10989443]
[1724958670401,3.5657,140.19,140.16,3.5663]
[1724958670601,5.0,140.2,140.15,34.27]
[1724958670806,5.0,140.2,140.17,34.27]
[1724958671095,5.0,140.2,140.19,34.27]
[1724958671298,84.58888415,140.27,140.22,0.05020997]